[Event "Titled Tuesday Blitz March 21 Late 2023"]
[White "Ricaurte Lopez, Juan Carlos"]
[Black "Skaric, Djuro"]
[WhiteFideId "3600327"]
[BlackFideId "934569"]
[WhiteElo "2209"]
[BlackElo "2282"]
[Result "0-1"]
[Round "09"]
[TimeControl "180+2"]
[Date "2023.03.21"]
[WhiteClock "0:00:01"]
[BlackClock "0:00:34"]

1. e4 {[%clk 0:02:58]}  d6 {[%clk 0:02:58]} 2. d4 {[%clk 0:02:59]}  g6 {[%clk 0:02:58]} 3. Nc3 {[%clk 0:02:58]}  Bg7 {[%clk 0:02:59]} 4. Be3 {[%clk 0:02:56]}  Nf6 {[%clk 0:02:59]} 5. f3 {[%clk 0:02:55]}  O-O {[%clk 0:02:59]} 6. Qd2 {[%clk 0:02:55]}  Nc6 {[%clk 0:02:59]} 7. O-O-O {[%clk 0:02:53]}  e5 {[%clk 0:02:59]} 8. Nge2 {[%clk 0:02:51]}  Nh5 {[%clk 0:02:59]} 9. g4 {[%clk 0:02:46]}  Nf4 {[%clk 0:02:59]} 10. Nxf4 {[%clk 0:02:22]}  exd4 {[%clk 0:02:58]} 11. Bxd4 {[%clk 0:02:16]}  Nxd4 {[%clk 0:02:58]} 12. Nfd5 {[%clk 0:02:02]}  Nxf3 {[%clk 0:02:56]} 13. Qg2 {[%clk 0:01:49]}  Nh4 {[%clk 0:02:54]} 14. Qg3 {[%clk 0:01:39]}  c6 {[%clk 0:02:53]} 15. Ne3 {[%clk 0:01:18]}  Qg5 {[%clk 0:02:51]} 16. Rxd6 {[%clk 0:01:09]}  Bh6 {[%clk 0:02:49]} 17. Rd3 {[%clk 0:01:01]}  Be6 {[%clk 0:02:31]} 18. b3 {[%clk 0:00:32]}  Rad8 {[%clk 0:02:28]} 19. Nd1 {[%clk 0:00:26]}  Rxd3 {[%clk 0:02:22]} 20. Bxd3 {[%clk 0:00:25]}  Bxg4 {[%clk 0:02:02]} 21. Rg1 {[%clk 0:00:22]}  Bxd1 {[%clk 0:02:02]} 22. Qxg5 {[%clk 0:00:21]}  Bxg5 {[%clk 0:02:01]} 23. Rxg5 {[%clk 0:00:21]}  Bh5 {[%clk 0:02:00]} 24. Re5 {[%clk 0:00:14]}  Nf3 {[%clk 0:01:12]} 25. Re7 {[%clk 0:00:14]}  b5 {[%clk 0:01:05]} 26. h3 {[%clk 0:00:13]}  a5 {[%clk 0:01:01]} 27. Rc7 {[%clk 0:00:12]}  Ne5 {[%clk 0:00:59]} 28. Re7 {[%clk 0:00:10]}  f6 {[%clk 0:00:59]} 29. a4 {[%clk 0:00:07]}  bxa4 {[%clk 0:00:57]} 30. bxa4 {[%clk 0:00:08]}  Rf7 {[%clk 0:00:56]} 31. Re6 {[%clk 0:00:05]}  Kg7 {[%clk 0:00:55]} 32. Nc4 {[%clk 0:00:04]}  Nxc4 {[%clk 0:00:52]} 33. Bxc4 {[%clk 0:00:05]}  Rc7 {[%clk 0:00:52]} 34. Rd6 {[%clk 0:00:05]}  Bf3 {[%clk 0:00:49]} 35. Bd3 {[%clk 0:00:02]}  h5 {[%clk 0:00:49]} 36. Kd2 {[%clk 0:00:03]}  g5 {[%clk 0:00:49]} 37. Ke3 {[%clk 0:00:02]}  g4 {[%clk 0:00:48]} 38. h4 {[%clk 0:00:02]}  Bh1 {[%clk 0:00:43]} 39. Kf4 {[%clk 0:00:02]}  c5 {[%clk 0:00:39]} 40. e5 {[%clk 0:00:03]}  fxe5+ {[%clk 0:00:38]} 41. Kxe5 {[%clk 0:00:03]}  c4 {[%clk 0:00:39]} 42. Rg6+ {[%clk 0:00:02]}  Kf7 {[%clk 0:00:38]} 43. Rf6+ {[%clk 0:00:02]}  Ke8 {[%clk 0:00:35]} 44. Bg6+ {[%clk 0:00:01]}  Kd7 {[%clk 0:00:34]} 0-1


[Site "https://www.chess.com"]

[Event "Titled Tuesday Blitz March 21 Late 2023"]
[White "salgadoLO"]
[Black "Vaglio Munoz, Jaime"]
[BlackFideId "6500145"]
[WhiteElo "2189"]
[BlackElo "2199"]
[Result "0-1"]
[Round "09"]
[TimeControl "180+2"]
[Date "2023.03.21"]
[WhiteClock "0:00:03"]
[BlackClock "0:00:20"]

1. d4 {[%clk 0:03:00]}  c6 {[%clk 0:02:59]} 2. Nf3 {[%clk 0:02:56]}  g6 {[%clk 0:02:54]} 3. e4 {[%clk 0:02:50]}  Bg7 {[%clk 0:02:53]} 4. Nc3 {[%clk 0:02:48]}  d5 {[%clk 0:02:53]} 5. h3 {[%clk 0:02:47]}  dxe4 {[%clk 0:02:48]} 6. Nxe4 {[%clk 0:02:47]}  Nd7 {[%clk 0:02:47]} 7. Bd3 {[%clk 0:02:38]}  Ngf6 {[%clk 0:02:47]} 8. O-O {[%clk 0:02:35]}  Nxe4 {[%clk 0:02:45]} 9. Bxe4 {[%clk 0:02:35]}  Nf6 {[%clk 0:02:45]} 10. Bd3 {[%clk 0:02:34]}  O-O {[%clk 0:02:44]} 11. c3 {[%clk 0:02:27]}  Be6 {[%clk 0:02:41]} 12. Bf4 {[%clk 0:02:27]}  Bd5 {[%clk 0:02:40]} 13. Re1 {[%clk 0:02:26]}  Bxf3 {[%clk 0:02:31]} 14. Qxf3 {[%clk 0:02:25]}  Nd5 {[%clk 0:02:29]} 15. Bd2 {[%clk 0:02:23]}  e6 {[%clk 0:02:25]} 16. Rad1 {[%clk 0:02:21]}  Qf6 {[%clk 0:02:25]} 17. Qxf6 {[%clk 0:02:16]}  Bxf6 {[%clk 0:02:22]} 18. Be4 {[%clk 0:01:59]}  Rfd8 {[%clk 0:02:20]} 19. g3 {[%clk 0:01:47]}  Kg7 {[%clk 0:02:15]} 20. Kg2 {[%clk 0:01:46]}  a5 {[%clk 0:02:13]} 21. Bf3 {[%clk 0:01:43]}  b5 {[%clk 0:02:10]} 22. g4 {[%clk 0:01:40]}  h6 {[%clk 0:02:08]} 23. Kg3 {[%clk 0:01:38]}  g5 {[%clk 0:02:07]} 24. Bxd5 {[%clk 0:01:22]}  cxd5 {[%clk 0:02:05]} 25. f4 {[%clk 0:01:21]}  b4 {[%clk 0:01:50]} 26. h4 {[%clk 0:01:07]}  gxh4+ {[%clk 0:01:45]} 27. Kh3 {[%clk 0:01:07]}  bxc3 {[%clk 0:01:41]} 28. bxc3 {[%clk 0:01:03]}  Rab8 {[%clk 0:01:33]} 29. Rb1 {[%clk 0:01:01]}  a4 {[%clk 0:01:18]} 30. g5 {[%clk 0:00:58]}  hxg5 {[%clk 0:01:18]} 31. fxg5 {[%clk 0:00:58]}  Be7 {[%clk 0:01:17]} 32. Bf4 {[%clk 0:00:45]}  Rbc8 {[%clk 0:01:04]} 33. Re3 {[%clk 0:00:35]}  Rd7 {[%clk 0:01:00]} 34. Kxh4 {[%clk 0:00:31]}  Kg6 {[%clk 0:00:59]} 35. Kg4 {[%clk 0:00:22]}  a3 {[%clk 0:00:58]} 36. Rh3 {[%clk 0:00:15]}  Bf8 {[%clk 0:00:56]} 37. Be5 {[%clk 0:00:11]}  Bg7 {[%clk 0:00:27]} 38. Bxg7 {[%clk 0:00:11]}  Kxg7 {[%clk 0:00:26]} 39. Rbh1 {[%clk 0:00:11]}  Rdc7 {[%clk 0:00:24]} 40. Rh7+ {[%clk 0:00:08]}  Kf8 {[%clk 0:00:24]} 41. Rh8+ {[%clk 0:00:08]}  Ke7 {[%clk 0:00:24]} 42. Rxc8 {[%clk 0:00:08]}  Rxc8 {[%clk 0:00:24]} 43. Rh3 {[%clk 0:00:08]}  Rb8 {[%clk 0:00:23]} 44. g6 {[%clk 0:00:08]}  fxg6 {[%clk 0:00:23]} 45. Kg5 {[%clk 0:00:08]}  Rb2 {[%clk 0:00:22]} 46. Kxg6 {[%clk 0:00:05]}  Rg2+ {[%clk 0:00:22]} 47. Kh7 {[%clk 0:00:04]}  Rxa2 {[%clk 0:00:22]} 48. Rg3 {[%clk 0:00:04]}  Rh2+ {[%clk 0:00:21]} 49. Kg7 {[%clk 0:00:03]}  a2 {[%clk 0:00:22]} 50. Rg1 {[%clk 0:00:04]}  Rg2+ {[%clk 0:00:20]} 51. Rxg2 {[%clk 0:00:02]}  a1=Q {[%clk 0:00:20]} 52. Rf2 {[%clk 0:00:03]}  Qg1+ {[%clk 0:00:20]} 0-1


[Site "https://www.chess.com"]

[Event "Titled Tuesday Blitz March 21 Late 2023"]
[White "Gerbelli Neto, Eduardo"]
[Black "Li, Hui"]
[WhiteFideId "2103281"]
[BlackFideId "15400310"]
[WhiteElo "2178"]
[BlackElo "1967"]
[Result "1-0"]
[Round "09"]
[TimeControl "180+2"]
[Date "2023.03.21"]
[WhiteClock "0:00:12"]
[BlackClock "0:00:01"]

1. e4 {[%clk 0:02:58]}  e5 {[%clk 0:02:55]} 2. Nf3 {[%clk 0:02:56]}  Nf6 {[%clk 0:02:55]} 3. Nc3 {[%clk 0:02:55]}  Nc6 {[%clk 0:02:55]} 4. d4 {[%clk 0:02:55]}  exd4 {[%clk 0:02:56]} 5. Nxd4 {[%clk 0:02:56]}  Bb4 {[%clk 0:02:57]} 6. Nxc6 {[%clk 0:02:56]}  bxc6 {[%clk 0:02:58]} 7. Bd3 {[%clk 0:02:56]}  O-O {[%clk 0:02:58]} 8. Bg5 {[%clk 0:02:56]}  d5 {[%clk 0:02:57]} 9. e5 {[%clk 0:02:35]}  Re8 {[%clk 0:02:54]} 10. f4 {[%clk 0:02:35]}  h6 {[%clk 0:02:42]} 11. Bxf6 {[%clk 0:02:34]}  Qxf6 {[%clk 0:02:39]} 12. O-O {[%clk 0:02:34]}  Qh4 {[%clk 0:02:33]} 13. Qf3 {[%clk 0:02:25]}  Bg4 {[%clk 0:02:24]} 14. Qg3 {[%clk 0:02:25]}  Qxg3 {[%clk 0:02:12]} 15. hxg3 {[%clk 0:02:26]}  Bc5+ {[%clk 0:02:05]} 16. Kh2 {[%clk 0:02:25]}  Rab8 {[%clk 0:02:04]} 17. Rab1 {[%clk 0:02:16]}  Bd4 {[%clk 0:02:01]} 18. Na4 {[%clk 0:02:01]}  Bd7 {[%clk 0:01:46]} 19. c3 {[%clk 0:02:01]}  Be3 {[%clk 0:01:43]} 20. b4 {[%clk 0:01:48]}  g5 {[%clk 0:01:20]} 21. Nc5 {[%clk 0:01:27]}  Bxc5 {[%clk 0:01:15]} 22. bxc5 {[%clk 0:01:28]}  Kg7 {[%clk 0:01:09]} 23. Rb4 {[%clk 0:01:26]}  a5 {[%clk 0:01:00]} 24. Ra4 {[%clk 0:01:22]}  Rb2 {[%clk 0:01:00]} 25. Rxa5 {[%clk 0:01:20]}  Rd2 {[%clk 0:01:00]} 26. Rf3 {[%clk 0:01:15]}  Rb8 {[%clk 0:00:54]} 27. Ra7 {[%clk 0:01:14]}  Rbb2 {[%clk 0:00:53]} 28. Bf1 {[%clk 0:01:14]}  Bf5 {[%clk 0:00:45]} 29. fxg5 {[%clk 0:01:06]}  Be4 {[%clk 0:00:41]} 30. gxh6+ {[%clk 0:01:01]}  Kxh6 {[%clk 0:00:41]} 31. Rf6+ {[%clk 0:01:00]}  Kg5 {[%clk 0:00:35]} 32. Rxf7 {[%clk 0:00:38]}  Bxg2 {[%clk 0:00:34]} 33. Bxg2 {[%clk 0:00:39]}  Rxg2+ {[%clk 0:00:34]} 34. Kh1 {[%clk 0:00:40]}  Rgc2 {[%clk 0:00:26]} 35. Kg1 {[%clk 0:00:27]}  Rc1+ {[%clk 0:00:22]} 36. Rf1 {[%clk 0:00:26]}  Rcc2 {[%clk 0:00:20]} 37. Rf7 {[%clk 0:00:25]}  Rc1+ {[%clk 0:00:11]} 38. Rf1 {[%clk 0:00:24]}  Rxc3 {[%clk 0:00:12]} 39. Rf7 {[%clk 0:00:17]}  Rxg3+ {[%clk 0:00:06]} 40. Kf1 {[%clk 0:00:18]}  Rh3 {[%clk 0:00:04]} 41. Kg1 {[%clk 0:00:17]}  Rc3 {[%clk 0:00:04]} 42. Rf1 {[%clk 0:00:14]}  Rcc2 {[%clk 0:00:03]} 43. Rf7 {[%clk 0:00:14]}  Rc1+ {[%clk 0:00:03]} 44. Rf1 {[%clk 0:00:13]}  Rxc5 {[%clk 0:00:02]} 45. Rxc7 {[%clk 0:00:13]}  Rxa2 {[%clk 0:00:02]} 46. Rg7+ {[%clk 0:00:13]}  Kh6 {[%clk 0:00:02]} 47. Rg3 {[%clk 0:00:13]}  Rc4 {[%clk 0:00:01]} 48. Rf6+ {[%clk 0:00:13]}  Kh7 {[%clk 0:00:01]} 49. Rf5 {[%clk 0:00:12]} 1-0


[Site "https://www.chess.com"]

[Event "Titled Tuesday Blitz March 21 Late 2023"]
[White "Prieto Aranguren, Alain"]
[Black "Barria Santos, Jose Guilherme"]
[WhiteFideId "2268906"]
[BlackFideId "1939300"]
[WhiteElo "2209"]
[BlackElo "2301"]
[Result "1-0"]
[Round "09"]
[TimeControl "180+2"]
[Date "2023.03.21"]
[WhiteClock "0:00:40"]
[BlackClock "0:00:06"]

1. e4 {[%clk 0:02:52]}  c5 {[%clk 0:02:59]} 2. d3 {[%clk 0:02:42]}  d6 {[%clk 0:02:56]} 3. Be3 {[%clk 0:02:42]}  e6 {[%clk 0:02:47]} 4. Nh3 {[%clk 0:02:40]}  g6 {[%clk 0:02:44]} 5. Ng5 {[%clk 0:02:40]}  Bg7 {[%clk 0:02:43]} 6. h4 {[%clk 0:02:39]}  Bxb2 {[%clk 0:02:39]} 7. Nd2 {[%clk 0:02:39]}  Bxa1 {[%clk 0:02:35]} 8. Qxa1 {[%clk 0:02:39]}  Qf6 {[%clk 0:02:36]} 9. Qc1 {[%clk 0:02:32]}  Nc6 {[%clk 0:02:21]} 10. Nc4 {[%clk 0:02:32]}  Qe7 {[%clk 0:02:21]} 11. h5 {[%clk 0:02:27]}  Nf6 {[%clk 0:02:03]} 12. Qb2 {[%clk 0:02:19]}  e5 {[%clk 0:01:57]} 13. h6 {[%clk 0:02:14]}  Ng4 {[%clk 0:01:54]} 14. Bd2 {[%clk 0:02:11]}  Nd4 {[%clk 0:01:51]} 15. f3 {[%clk 0:02:06]}  Nf6 {[%clk 0:01:45]} 16. Nh3 {[%clk 0:02:03]}  Be6 {[%clk 0:01:38]} 17. Ne3 {[%clk 0:02:00]}  Qd7 {[%clk 0:01:13]} 18. Ng5 {[%clk 0:01:56]}  Qb5 {[%clk 0:01:02]} 19. Qc1 {[%clk 0:01:46]}  Bxa2 {[%clk 0:00:59]} 20. c3 {[%clk 0:01:38]}  Nb3 {[%clk 0:00:57]} 21. Qb2 {[%clk 0:01:33]}  Qa4 {[%clk 0:00:46]} 22. d4 {[%clk 0:01:28]}  a6 {[%clk 0:00:41]} 23. Bc4 {[%clk 0:01:22]}  O-O {[%clk 0:00:35]} 24. dxe5 {[%clk 0:00:53]}  dxe5 {[%clk 0:00:34]} 25. Nd5 {[%clk 0:00:54]}  Nxd5 {[%clk 0:00:33]} 26. Bxd5 {[%clk 0:00:54]}  Rab8 {[%clk 0:00:27]} 27. Be3 {[%clk 0:00:48]}  b5 {[%clk 0:00:25]} 28. O-O {[%clk 0:00:46]}  c4 {[%clk 0:00:23]} 29. f4 {[%clk 0:00:44]}  exf4 {[%clk 0:00:17]} 30. Rxf4 {[%clk 0:00:43]}  Kh8 {[%clk 0:00:08]} 31. Nxf7+ {[%clk 0:00:42]}  Rxf7 {[%clk 0:00:09]} 32. Rxf7 {[%clk 0:00:42]}  Qa5 {[%clk 0:00:07]} 33. Qf2 {[%clk 0:00:41]}  Qd8 {[%clk 0:00:06]} 34. Bd4+ {[%clk 0:00:40]} 1-0


[Site "https://www.chess.com"]

[Event "Titled Tuesday Blitz March 21 Late 2023"]
[White "Stanisz, Patryk"]
[Black "Picard, Romain"]
[WhiteFideId "1123106"]
[BlackFideId "627216"]
[WhiteElo "2069"]
[BlackElo "2225"]
[Result "1-0"]
[Round "09"]
[TimeControl "180+2"]
[Date "2023.03.21"]
[WhiteClock "0:00:11"]
[BlackClock "0:00:01"]

1. d4 {[%clk 0:03:00]}  Nf6 {[%clk 0:02:59]} 2. c4 {[%clk 0:03:00]}  g6 {[%clk 0:02:59]} 3. Nc3 {[%clk 0:03:00]}  d5 {[%clk 0:02:59]} 4. Nf3 {[%clk 0:02:59]}  Bg7 {[%clk 0:03:00]} 5. Qb3 {[%clk 0:03:00]}  dxc4 {[%clk 0:02:59]} 6. Qxc4 {[%clk 0:03:01]}  O-O {[%clk 0:03:00]} 7. Bf4 {[%clk 0:03:01]}  Bf5 {[%clk 0:02:54]} 8. e3 {[%clk 0:02:38]}  Ne4 {[%clk 0:02:29]} 9. Be2 {[%clk 0:02:18]}  Nxc3 {[%clk 0:02:11]} 10. bxc3 {[%clk 0:02:19]}  Nc6 {[%clk 0:01:18]} 11. O-O {[%clk 0:01:55]}  Be4 {[%clk 0:01:17]} 12. Rfd1 {[%clk 0:01:46]}  e6 {[%clk 0:01:07]} 13. Nd2 {[%clk 0:01:39]}  Bd5 {[%clk 0:01:06]} 14. Qd3 {[%clk 0:01:39]}  e5 {[%clk 0:01:01]} 15. Bg3 {[%clk 0:01:35]}  exd4 {[%clk 0:00:52]} 16. cxd4 {[%clk 0:01:25]}  Na5 {[%clk 0:00:20]} 17. Rac1 {[%clk 0:01:10]}  c6 {[%clk 0:00:21]} 18. Qa3 {[%clk 0:00:54]}  Re8 {[%clk 0:00:13]} 19. Rb1 {[%clk 0:00:47]}  Bf8 {[%clk 0:00:11]} 20. Qc3 {[%clk 0:00:42]}  b6 {[%clk 0:00:07]} 21. f3 {[%clk 0:00:35]}  Bg7 {[%clk 0:00:05]} 22. Bf2 {[%clk 0:00:28]}  c5 {[%clk 0:00:04]} 23. dxc5 {[%clk 0:00:25]}  Bxc3 {[%clk 0:00:04]} 24. Ne4 {[%clk 0:00:20]}  Bg7 {[%clk 0:00:02]} 25. cxb6 {[%clk 0:00:16]}  axb6 {[%clk 0:00:03]} 26. Ng3 {[%clk 0:00:13]}  Ra7 {[%clk 0:00:02]} 27. e4 {[%clk 0:00:13]}  Rd7 {[%clk 0:00:02]} 28. Bxb6 {[%clk 0:00:12]}  Qa8 {[%clk 0:00:01]} 29. exd5 {[%clk 0:00:11]} 1-0


[Site "https://www.chess.com"]

[Event "Titled Tuesday Blitz March 21 Late 2023"]
[White "Clawitter, Craig"]
[Black "Marcolino, Daniel Mattos"]
[WhiteFideId "2023105"]
[BlackFideId "2106841"]
[WhiteElo "2215"]
[BlackElo "2090"]
[Result "1-0"]
[Round "09"]
[TimeControl "180+2"]
[Date "2023.03.21"]
[WhiteClock "0:00:06"]
[BlackClock "0:00:01"]

1. e4 {[%clk 0:03:00]}  c6 {[%clk 0:02:58]} 2. d4 {[%clk 0:03:00]}  d5 {[%clk 0:02:58]} 3. e5 {[%clk 0:03:01]}  c5 {[%clk 0:02:59]} 4. Nf3 {[%clk 0:03:01]}  cxd4 {[%clk 0:02:58]} 5. Qxd4 {[%clk 0:03:02]}  Nc6 {[%clk 0:02:57]} 6. Bb5 {[%clk 0:03:02]}  e6 {[%clk 0:02:55]} 7. c4 {[%clk 0:02:58]}  Ne7 {[%clk 0:02:43]} 8. cxd5 {[%clk 0:02:52]}  Nxd5 {[%clk 0:02:36]} 9. Bxc6+ {[%clk 0:02:34]}  bxc6 {[%clk 0:02:37]} 10. Nc3 {[%clk 0:02:34]}  Qb6 {[%clk 0:02:11]} 11. O-O {[%clk 0:02:32]}  Bc5 {[%clk 0:02:05]} 12. Qg4 {[%clk 0:02:29]}  Nxc3 {[%clk 0:01:43]} 13. bxc3 {[%clk 0:02:29]}  g6 {[%clk 0:01:29]} 14. Bh6 {[%clk 0:02:14]}  Ba6 {[%clk 0:01:29]} 15. Rfd1 {[%clk 0:02:02]}  Bxf2+ {[%clk 0:01:16]} 16. Kh1 {[%clk 0:01:59]}  Be2 {[%clk 0:00:45]} 17. Rd2 {[%clk 0:01:48]}  Bxf3 {[%clk 0:00:45]} 18. Qxf3 {[%clk 0:01:44]}  Bc5 {[%clk 0:00:45]} 19. Qf6 {[%clk 0:01:31]}  Rg8 {[%clk 0:00:42]} 20. Rad1 {[%clk 0:01:11]}  Be7 {[%clk 0:00:25]} 21. Qf4 {[%clk 0:00:28]}  Rd8 {[%clk 0:00:20]} 22. h3 {[%clk 0:00:26]}  Rxd2 {[%clk 0:00:18]} 23. Qxd2 {[%clk 0:00:27]}  Qc7 {[%clk 0:00:16]} 24. Bg5 {[%clk 0:00:25]}  Bxg5 {[%clk 0:00:16]} 25. Qxg5 {[%clk 0:00:24]}  h5 {[%clk 0:00:16]} 26. Rd6 {[%clk 0:00:11]}  Qe7 {[%clk 0:00:16]} 27. Qd2 {[%clk 0:00:09]}  Kf8 {[%clk 0:00:15]} 28. Qh6+ {[%clk 0:00:07]}  Ke8 {[%clk 0:00:14]} 29. Qd2 {[%clk 0:00:07]}  Kf8 {[%clk 0:00:13]} 30. Rxc6 {[%clk 0:00:07]}  Kg7 {[%clk 0:00:13]} 31. Qf4 {[%clk 0:00:06]}  Rd8 {[%clk 0:00:12]} 32. Kh2 {[%clk 0:00:06]}  Rd5 {[%clk 0:00:10]} 33. c4 {[%clk 0:00:06]}  Rd7 {[%clk 0:00:09]} 34. c5 {[%clk 0:00:05]}  Qd8 {[%clk 0:00:09]} 35. Rd6 {[%clk 0:00:05]}  Qc7 {[%clk 0:00:08]} 36. Qd4 {[%clk 0:00:05]}  Rxd6 {[%clk 0:00:06]} 37. exd6+ {[%clk 0:00:05]}  e5 {[%clk 0:00:01]} 38. Qxe5+ {[%clk 0:00:06]}  f6 {[%clk 0:00:01]} 39. Qxf6+ {[%clk 0:00:06]}  Kxf6 {[%clk 0:00:01]} 40. dxc7 {[%clk 0:00:06]} 1-0


[Site "https://www.chess.com"]

[Event "Titled Tuesday Blitz March 21 Late 2023"]
[White "Kramnik, Vladimir"]
[Black "Gholami Orimi, Mahdi"]
[WhiteFideId "4101588"]
[BlackFideId "12558486"]
[WhiteElo "2712"]
[BlackElo "2363"]
[Result "1-0"]
[Round "10"]
[TimeControl "180+2"]
[Date "2023.03.21"]
[WhiteClock "0:00:13"]
[BlackClock "0:00:05"]

1. c4 {[%clk 0:03:00]}  e5 {[%clk 0:02:58]} 2. Nc3 {[%clk 0:03:00]}  f5 {[%clk 0:02:59]} 3. d4 {[%clk 0:02:58]}  d6 {[%clk 0:02:58]} 4. g3 {[%clk 0:02:54]}  exd4 {[%clk 0:02:56]} 5. Qxd4 {[%clk 0:02:53]}  Nc6 {[%clk 0:02:56]} 6. Qe3+ {[%clk 0:02:50]}  Qe7 {[%clk 0:02:57]} 7. Nd5 {[%clk 0:02:48]}  Qxe3 {[%clk 0:02:54]} 8. Bxe3 {[%clk 0:02:48]}  Kd8 {[%clk 0:02:38]} 9. Nf3 {[%clk 0:02:48]}  Nge7 {[%clk 0:02:27]} 10. Ng5 {[%clk 0:02:40]}  Ne5 {[%clk 0:02:27]} 11. Rc1 {[%clk 0:02:21]}  h6 {[%clk 0:02:23]} 12. f4 {[%clk 0:02:21]}  hxg5 {[%clk 0:01:33]} 13. fxe5 {[%clk 0:02:19]}  dxe5 {[%clk 0:01:33]} 14. Rd1 {[%clk 0:02:09]}  Bd7 {[%clk 0:01:32]} 15. Bxg5 {[%clk 0:02:06]}  c6 {[%clk 0:01:32]} 16. Nc3 {[%clk 0:01:57]}  Kc7 {[%clk 0:01:31]} 17. h4 {[%clk 0:01:56]}  Nc8 {[%clk 0:01:28]} 18. e4 {[%clk 0:01:49]}  Nd6 {[%clk 0:01:23]} 19. Bd3 {[%clk 0:01:48]}  Re8 {[%clk 0:01:17]} 20. O-O {[%clk 0:01:45]}  fxe4 {[%clk 0:01:12]} 21. Nxe4 {[%clk 0:01:45]}  Nxe4 {[%clk 0:01:12]} 22. Bxe4 {[%clk 0:01:45]}  Bc5+ {[%clk 0:01:13]} 23. Kg2 {[%clk 0:01:45]}  Ref8 {[%clk 0:01:11]} 24. b3 {[%clk 0:01:33]}  Bg4 {[%clk 0:01:01]} 25. Rde1 {[%clk 0:01:33]}  Bb4 {[%clk 0:00:58]} 26. Rc1 {[%clk 0:01:24]}  Ba3 {[%clk 0:00:57]} 27. Rb1 {[%clk 0:01:19]}  a5 {[%clk 0:00:57]} 28. Be3 {[%clk 0:01:17]}  Bb4 {[%clk 0:00:49]} 29. Bf3 {[%clk 0:01:07]}  Bf5 {[%clk 0:00:44]} 30. Rbd1 {[%clk 0:01:06]}  Bc2 {[%clk 0:00:43]} 31. Rc1 {[%clk 0:00:59]}  Bd3 {[%clk 0:00:44]} 32. Rf2 {[%clk 0:00:59]}  e4 {[%clk 0:00:40]} 33. Be2 {[%clk 0:00:58]}  Rxf2+ {[%clk 0:00:39]} 34. Kxf2 {[%clk 0:00:58]}  Rf8+ {[%clk 0:00:31]} 35. Bf4+ {[%clk 0:00:57]}  Bd6 {[%clk 0:00:32]} 36. Bxd3 {[%clk 0:00:55]}  Bxf4 {[%clk 0:00:31]} 37. gxf4 {[%clk 0:00:55]}  exd3 {[%clk 0:00:29]} 38. Ke3 {[%clk 0:00:55]}  d2 {[%clk 0:00:20]} 39. Rg1 {[%clk 0:00:44]}  Rd8 {[%clk 0:00:16]} 40. Rd1 {[%clk 0:00:43]}  Rh8 {[%clk 0:00:15]} 41. Rxd2 {[%clk 0:00:43]}  Rxh4 {[%clk 0:00:16]} 42. Rg2 {[%clk 0:00:43]}  Rh7 {[%clk 0:00:16]} 43. Ke4 {[%clk 0:00:43]}  Kd6 {[%clk 0:00:14]} 44. Kf5 {[%clk 0:00:40]}  Ke7 {[%clk 0:00:12]} 45. Re2+ {[%clk 0:00:22]}  Kf7 {[%clk 0:00:11]} 46. Rd2 {[%clk 0:00:21]}  g6+ {[%clk 0:00:06]} 47. Ke5 {[%clk 0:00:20]}  Rh5+ {[%clk 0:00:05]} 48. Kd6 {[%clk 0:00:19]}  Rf5 {[%clk 0:00:06]} 49. Kc7 {[%clk 0:00:18]}  b5 {[%clk 0:00:06]} 50. Kxc6 {[%clk 0:00:16]}  bxc4 {[%clk 0:00:07]} 51. bxc4 {[%clk 0:00:16]}  Rxf4 {[%clk 0:00:08]} 52. c5 {[%clk 0:00:17]}  g5 {[%clk 0:00:08]} 53. Kb6 {[%clk 0:00:16]}  Rg4 {[%clk 0:00:03]} 54. c6 {[%clk 0:00:15]}  a4 {[%clk 0:00:03]} 55. c7 {[%clk 0:00:15]}  Rc4 {[%clk 0:00:03]} 56. Rd5 {[%clk 0:00:15]}  g4 {[%clk 0:00:03]} 57. Rc5 {[%clk 0:00:14]}  Rxc5 {[%clk 0:00:03]} 58. Kxc5 {[%clk 0:00:14]}  g3 {[%clk 0:00:04]} 59. c8=Q {[%clk 0:00:13]}  g2 {[%clk 0:00:05]} 60. Qg4 {[%clk 0:00:13]} 1-0


[Site "https://www.chess.com"]